bitfinex-derivatives/quotes_SOLF0:USTF0_20250301
["timestamp","ask_amount","ask_price","bid_price","bid_amount"]
[1740796580703,5.3667,149.13,149.04,14.22887342]
[1740796580908,0.04725938,149.1,149.08,0.04472287]
[1740796582601,5.3679,149.09,149.08,0.04472287]
[1740796584299,5.3689,149.07,149.0,3.539]
[1740796584500,10.7115,149.09,149.0,6.78427342]
[1740796585512,0.04589253,149.06,149.03,0.04536667]
[1740796585901,0.04589253,149.06,149.03,3.29064009]
[1740796586299,0.04589253,149.06,149.03,0.04536667]
[1740796586509,5.3697,149.04,149.03,0.04536667]
[1740796587415,5.3694,149.05,149.03,0.04536667]
[1740796588014,0.04589253,149.06,149.03,0.04536667]
[1740796589107,0.04589253,149.06,149.03,3.29064009]
[1740796589309,0.04589253,149.06,149.03,0.04536667]
[1740796589909,0.04589253,149.06,149.03,3.29064009]
[1740796590106,0.04589253,149.06,149.03,0.04536667]
[1740796590707,5.41509253,149.06,149.03,0.04536667]
[1740796591010,0.04589253,149.06,149.03,3.29064009]
[1740796591612,0.04589253,149.06,149.03,0.04536667]
[1740796592513,0.04589253,149.06,149.03,5.41526667]
[1740796593015,0.04589253,149.06,149.05,5.3693]
[1740796594112,3.7283,149.16,149.04,3.5585]
[1740796594307,14.18,149.15,149.04,3.5585]
[1740796594516,6.9603,149.17,149.04,3.5585]
[1740796594720,73.85985222,149.19,149.04,3.5585]
[1740796595319,0.04323678,149.13,149.1,5.41578074]
[1740796595721,73.85985222,149.19,149.1,3.15614411]
[1740796595916,93.94985222,149.19,149.1,3.15614411]
[1740796596123,93.94985222,149.19,149.06,7.273]
[1740796596420,93.94985222,149.19,149.06,10.42914411]
[1740796596822,0.04748629,149.14,149.11,0.04927331]
[1740796597022,14.16,149.13,149.11,0.04927331]
[1740796597223,5.3668,149.12,149.11,0.04927331]
[1740796598621,220.0468,149.12,149.11,0.04927331]
[1740796599721,220.0468,149.12,149.0,14.16]
[1740796599722,225.4397,149.12,149.01,5.3706]
[1740796599916,225.4397,149.12,149.01,3.15614411]
[1740796600623,20.09,149.11,149.01,3.15614411]
[1740796600824,0.04481759,149.08,149.05,0.04960692]
[1740796601025,14.12481759,149.08,149.05,0.04960692]
[1740796601225,5.369,149.06,149.05,0.04960692]
[1740796601527,14.12481759,149.08,149.05,0.04960692]
[1740796602519,5.369,149.06,149.05,0.04960692]
[1740796603820,34.21481759,149.08,148.95,5.3729]
[1740796604020,3.7907,149.05,148.95,3.15614411]
[1740796604426,14.08,149.08,148.93,11.3048]
[1740796604623,14.08,149.08,148.94,14.08]
[1740796604924,0.04802314,149.02,149.0,5.41062679]
[1740796605229,14.08,149.08,149.0,0.03962679]
[1740796605420,0.04485413,149.02,149.0,0.03962679]
[1740796605621,14.08,149.08,149.0,0.03962679]
[1740796605822,0.05078326,149.02,149.0,0.03962679]
[1740796606022,14.08,149.08,149.0,0.03962679]
[1740796606223,0.05031189,149.02,149.0,0.03962679]
[1740796606530,14.08,149.08,149.0,0.03962679]
[1740796606921,5.368,149.09,149.0,0.03962679]
[1740796607224,3.4705,149.11,149.0,3.548]
[1740796607527,0.04690992,149.07,149.04,0.04956571]
[1740796607825,5.41550992,149.07,149.04,0.04956571]
[1740796608126,0.04690992,149.07,149.04,3.20570982]
[1740796608522,5.3693,149.05,149.04,3.20570982]
[1740796609130,5.3693,149.05,149.04,0.04956571]
[1740796609526,5.369,149.06,149.04,0.04956571]
[1740796610025,0.04690992,149.07,149.04,0.04956571]
[1740796610621,0.04690992,149.07,149.04,3.20570982]
[1740796611128,5.3693,149.06,149.04,3.20570982]
[1740796611723,0.04690992,149.07,149.04,3.20570982]
[1740796611924,0.04690992,149.07,149.04,0.04956571]
[1740796612526,0.04690992,149.07,149.04,3.20570982]
[1740796612721,5.41580992,149.07,149.04,3.20570982]
[1740796612924,0.04690992,149.07,149.04,0.04956571]
[1740796615127,0.04690992,149.07,149.06,5.369]
[1740796615327,214.68,149.12,149.06,3.36]
[1740796615528,214.68,149.12,149.09,5.3676]
[1740796615728,214.68,149.12,149.06,14.08]
[1740796615729,214.68,149.12,149.07,3.5362]
[1740796616123,5.3675,149.1,149.06,14.08]
[1740796616338,214.68,149.12,149.05,6.9651]
[1740796616631,0.04719268,149.09,149.07,0.05052933]
[1740796617331,0.04719268,149.09,149.07,3.20667344]
[1740796617729,0.04719268,149.09,149.07,0.05052933]
[1740796617925,5.41529268,149.09,149.07,0.05052933]
[1740796618529,0.04719268,149.09,149.07,0.05052933]
[1740796618831,0.04719268,149.09,149.07,3.20667344]
[1740796619036,5.3682,149.08,149.07,3.20667344]
[1740796619236,0.04719268,149.09,149.07,3.20667344]
[1740796619428,0.04719268,149.09,149.07,0.05052933]
[1740796619834,0.04719268,149.09,149.07,5.41882933]
[1740796620337,0.04719268,149.09,149.07,0.05052933]
[1740796620724,211.57104857,149.12,149.07,0.05052933]
[1740796620929,5.3663,149.14,149.07,14.13052933]
[1740796621132,313.75265222,149.19,149.07,14.13052933]
[1740796621430,313.75265222,149.19,149.07,14.08]
[1740796621631,239.8928,149.19,149.03,3.6811]
[1740796622127,0.04589138,149.12,149.1,0.04940133]
[1740796622334,14.08,149.12,149.01,7.0437]
[1740796622530,7.3527,149.11,149.01,7.0437]
[1740796623335,7.3527,149.11,149.0,14.08]
[1740796623534,0.05093777,149.07,149.05,0.04899585]
[1740796623836,5.369,149.06,149.05,0.04899585]
[1740796625829,5.37,149.04,148.98,8.9604]
[1740796626035,14.08,149.07,148.98,3.5886]
[1740796626230,14.08,149.07,148.96,7.3172]
[1740796626537,5.3703,149.03,148.97,5.3721]
[1740796627038,0.05054895,149.01,148.99,0.04335335]
[1740796627239,14.08,149.07,148.99,0.04335335]
[1740796627439,0.0473532,149.01,149.0,5.3711]
[1740796627637,19.4486,149.07,148.96,7.3172]
[1740796627833,0.05106736,149.02,148.96,7.3172]
[1740796628037,0.05106736,149.02,148.99,0.04556839]
[1740796628739,0.05106736,149.02,148.9,16.05209767]
[1740796628740,14.13106736,149.02,148.9,16.05209767]
[1740796628932,14.08,149.02,148.91,10.7493]
[1740796629731,5.371,149.01,148.95,5.3726]
[1740796629942,0.04549389,148.98,148.95,5.41267572]
[1740796631537,0.04549389,148.98,148.95,0.04007572]
[1740796634935,214.82549389,148.98,148.95,0.04007572]
[1740796636144,214.82549389,148.98,148.97,5.3722]
[1740796636947,0.04549389,148.98,148.97,5.3722]
[1740796638238,0.04549389,148.98,148.96,5.3726]
[1740796638439,0.04549389,148.98,148.95,0.04007572]
[1740796638740,0.04549389,148.98,148.95,5.41277572]
[1740796638944,0.04549389,148.98,148.95,0.04007572]
[1740796639447,0.04549389,148.98,148.97,5.3722]
[1740796639848,9.389e-05,148.98,148.97,5.3722]
[1740796640543,9.389e-05,148.98,148.95,0.04007572]
[1740796641947,5.37199389,148.98,148.95,0.04007572]
[1740796642541,9.389e-05,148.98,148.95,0.04007572]
[1740796643645,5.37219389,148.98,148.95,0.04007572]
[1740796643848,9.389e-05,148.98,148.95,0.04007572]
[1740796644149,9.389e-05,148.98,148.95,5.41297572]
[1740796644349,9.389e-05,148.98,148.95,0.04007572]
[1740796647550,5.3726,148.96,148.95,0.04007572]
[1740796647747,20.09,148.96,148.82,36.9299261]
[1740796647952,228.92,148.95,148.81,10.9577]
[1740796648254,5.3751,148.89,148.81,10.9577]
[1740796648440,228.92,148.95,148.81,10.9577]
[1740796648642,5.3743,148.92,148.84,5.3769]
[1740796648838,5.3743,148.92,148.81,10.9577]
[1740796648839,0.04537786,148.89,148.87,0.04332495]
[1740796649255,0.04687618,148.89,148.87,0.04332495]
[1740796653247,0.04687618,148.89,148.88,5.3754]
[1740796654050,214.84,148.95,148.9,5.3746]
[1740796655244,0.04504424,148.94,148.91,0.0463644]
[1740796656856,0.04504424,148.94,148.91,5.4206644]
[1740796658650,0.04504424,148.94,148.91,0.0463644]
[1740796659660,0.04504424,148.94,148.93,5.3736]
[1740796660857,0.04504424,148.94,148.91,5.4205644]
[1740796661159,0.04504424,148.94,148.91,0.0463644]
[1740796662461,0.04504424,148.94,148.93,5.3736]
[1740796663759,0.04504424,148.94,148.92,5.3739]
[1740796668766,0.04504424,148.94,148.93,5.3736]
[1740796669965,0.04504424,148.94,148.92,5.3739]
[1740796671966,0.04504424,148.94,148.93,5.3736]
[1740796673968,214.84,148.95,148.94,5.3733]
[1740796673969,206.636,148.95,148.94,5.3733]
[1740796674161,214.88,149.02,148.91,0.0463644]
[1740796674363,214.88,149.02,148.89,3.6659]
[1740796674557,220.2507,149.02,148.98,5.3715]
[1740796674761,214.88,149.02,148.89,3.6659]
[1740796675169,0.04606537,148.97,148.94,0.05011552]
[1740796675868,0.04606537,148.97,148.96,5.3726]
[1740796676269,0.04606537,148.97,148.94,0.05011552]
[1740796676471,5.3726,148.96,148.94,0.05011552]
[1740796676863,0.04606537,148.97,148.94,0.05011552]
[1740796677466,0.04606537,148.97,148.94,5.42321552]
[1740796678065,5.41826537,148.97,148.94,5.42321552]
[1740796678265,5.41826537,148.97,148.94,0.05011552]
[1740796678466,0.04606537,148.97,148.94,0.05011552]
[1740796678662,5.3729,148.95,148.94,0.05011552]
[1740796679266,214.92606537,148.97,148.95,5.3729]
[1740796679478,0.04606537,148.97,148.94,0.05011552]
[1740796679970,0.04606537,148.97,148.94,3.75501552]
[1740796680268,0.04606537,148.97,148.96,5.3726]
[1740796680469,222.2248,149.04,148.95,3.632]
[1740796681667,0.04817837,149.01,148.98,0.04974801]
[1740796682975,5.3715,148.99,148.98,0.04974801]
[1740796684268,220.2315,148.99,148.98,0.04974801]
[1740796684977,214.86,148.99,148.98,0.04974801]
[1740796686474,214.86,148.99,148.98,5.42154801]
[1740796686670,214.86,148.99,148.98,0.04974801]
[1740796686975,214.86,148.99,148.98,5.42154801]
[1740796687566,0.04817837,149.01,149.0,5.3711]
[1740796687972,0.04817837,149.01,148.98,0.04974801]
[1740796688570,0.04817837,149.01,149.0,5.3711]
[1740796689372,214.86,149.06,148.98,0.04974801]
[1740796689572,214.86,149.06,149.03,5.3699]
[1740796689872,214.86,149.06,148.99,3.6599]
[1740796690275,220.2292,149.06,149.01,5.3704]
[1740796690473,220.2292,149.06,148.99,3.6599]
[1740796690474,214.86,149.06,148.99,3.6599]
[1740796690777,0.04656167,149.05,149.02,0.04462749]
[1740796690980,5.37,149.03,149.02,0.04462749]
[1740796692971,3.6832,149.04,148.92,7.2887]
[1740796693180,3.4707,149.02,148.92,7.2887]
[1740796693981,14.06,149.03,148.92,7.2887]
[1740796694181,0.04653042,148.98,148.97,5.3722]
[1740796694380,14.06,149.03,148.96,0.05063426]
[1740796694682,0.04635082,148.99,148.98,5.3716]
[1740796694883,19.4303,149.03,148.92,7.2887]
[1740796695080,0.04588383,149.0,148.97,0.04406035]
[1740796695281,0.04588383,149.0,148.99,5.3715]
[1740796695476,0.04588383,149.0,148.97,0.04406035]
[1740796695673,0.04588383,149.0,148.98,5.3715]
[1740796695878,0.04588383,149.0,148.97,0.04406035]
[1740796696374,0.04588383,149.0,148.98,5.3716]
[1740796696884,5.3715,148.99,148.97,0.04406035]
[1740796697075,0.04588383,149.0,148.97,0.04406035]
[1740796697490,0.04588383,149.0,148.98,5.3718]
[1740796697987,0.04588383,149.0,148.97,0.04406035]
[1740796698187,0.04588383,149.0,148.97,5.41616035]
[1740796698379,0.04588383,149.0,148.97,0.04406035]
[1740796698786,0.04588383,149.0,148.97,5.41616035]
[1740796699388,0.04588383,149.0,148.97,0.04406035]
[1740796700381,5.3718,148.98,148.97,0.04406035]
[1740796703890,3.36,148.98,148.89,5.3748]
[1740796704188,14.06,148.97,148.85,3.6126]
[1740796704394,214.84,148.96,148.85,3.6126]
[1740796704595,214.84,148.96,148.84,5.3768]
[1740796704795,236.27264232,148.96,148.82,36.9299261]
[1740796705206,236.27264232,148.96,148.88,0.04258771]
[1740796705207,0.04338512,148.9,148.88,0.04258771]
[1740796705398,14.06,148.89,148.88,0.04258771]
[1740796706003,14.06,148.89,148.82,36.9299261]
[1740796706204,14.06,148.89,148.82,9.23248152]
[1740796706410,14.06,148.89,148.81,9.23248152]
[1740796706704,14.06,148.89,148.81,14.61008152]
[1740796707300,0.04544794,148.86,148.84,0.04303831]
[1740796707908,5.42164794,148.86,148.84,0.04303831]
[1740796710308,220.36164794,148.86,148.84,0.04303831]
[1740796710509,5.3765,148.85,148.84,0.04303831]
[1740796711898,214.98544794,148.86,148.75,7.0951]
[1740796712107,5.3773,148.83,148.78,5.3789]
[1740796712607,183.267,148.99,148.77,14.06]
[1740796712809,1.34273246,148.95,148.78,1.23485187]
[1740796713008,1.34273246,148.95,148.85,0.04249926]
[1740796713009,0.04647135,148.87,148.85,0.04249926]
[1740796713307,1.34273246,148.95,148.88,5.3754]
[1740796713804,1.34273246,148.95,148.83,14.08]
[1740796714312,0.05081371,148.9,148.88,0.04422589]
[1740796714509,15.42273246,148.95,148.88,0.04422589]
[1740796714708,0.04664514,148.9,148.88,0.04422589]
[1740796714907,15.42273246,148.95,148.89,5.3748]
[1740796715109,0.04934466,148.9,148.88,0.04422589]
[1740796715411,15.42273246,148.95,148.88,0.04422589]
[1740796715611,0.04493344,148.9,148.88,0.04422589]
[1740796715814,15.42273246,148.95,148.88,0.04422589]
[1740796716006,0.04414747,148.9,148.88,0.04422589]
[1740796716212,0.049218,148.93,148.88,0.04422589]
[1740796717311,5.3746,148.91,148.88,0.04422589]
[1740796717608,229.04,148.9,148.88,0.04422589]
[1740796718409,214.98,148.9,148.89,5.3751]
[1740796718610,0.049218,148.93,148.88,0.04422589]
[1740796720024,0.049218,148.93,148.92,5.374]
[1740796720212,0.049218,148.93,148.85,3.664]
[1740796720414,0.049218,148.93,148.91,0.04850611]
[1740796720607,0.049218,148.93,148.9,5.3744]
[1740796720917,0.049218,148.93,148.91,0.05158313]
[1740796721216,0.049218,148.93,148.85,3.664]
[1740796721415,0.049218,148.93,148.91,0.04458523]
[1740796721613,0.049218,148.93,148.88,0.04777342]
[1740796722313,0.049218,148.93,148.92,5.374]
[1740796725219,1.8e-05,148.93,148.92,5.374]
[1740796725607,1.8e-05,148.93,148.92,12.592]
[1740796726614,1.8e-05,148.93,148.92,9.0824]
[1740796726920,1.8e-05,148.93,148.91,0.04684032]
[1740796730923,1.8e-05,148.93,148.92,5.374]
[1740796731315,1.8e-05,148.93,148.91,0.04684032]
[1740796733026,5.373718,148.93,148.91,0.04684032]
[1740796733925,5.374,148.92,148.91,0.04684032]
[1740796734120,1.8e-05,148.93,148.91,0.04684032]
[1740796734522,1.8e-05,148.93,148.92,5.374]
[1740796739431,1.8e-05,148.93,148.91,5.42104032]
[1740796739731,1.8e-05,148.93,148.91,0.04684032]
[1740796741626,5.374,148.92,148.91,0.04684032]
[1740796742933,1.8e-05,148.93,148.91,0.04684032]
[1740796744238,1.8e-05,148.93,148.91,5.42094032]
[1740796744635,1.8e-05,148.93,148.92,5.374]
[1740796747934,1.8e-05,148.93,148.92,12.5346]
[1740796749738,1.8e-05,148.93,148.92,19.4]
[1740796749940,1.8e-05,148.93,148.92,211.4]
[1740796750139,288.75985222,149.07,148.92,207.25974657]
[1740796750334,288.75985222,149.07,148.93,15.27374657]
[1740796750534,288.75985222,149.07,148.93,14.04]
[1740796750937,214.9,149.07,148.93,14.04]
[1740796751137,220.2687,149.07,148.94,1.23354347]
[1740796751431,0.04897316,149.01,148.99,0.04665422]
[1740796751639,220.2687,149.07,148.99,0.04665422]
[1740796751939,214.9,149.07,149.02,5.3704]
[1740796752130,214.9,149.07,148.99,7.1431]
[1740796752337,214.9,149.07,149.03,5.3698]
[1740796752535,214.9,149.07,148.99,7.1431]
[1740796752742,0.04947181,149.04,149.02,0.0493967]
[1740796753141,0.04947181,149.04,149.03,5.37]
[1740796753842,0.04947181,149.04,149.02,5.4196967]
[1740796754244,0.04947181,149.04,149.02,0.0493967]
[1740796754834,5.41947181,149.04,149.02,0.0493967]
[1740796755240,0.04947181,149.04,149.02,5.4196967]
[1740796755537,0.04947181,149.04,149.02,0.0493967]
[1740796755737,5.37,149.03,149.02,0.0493967]
[1740796755937,0.04947181,149.04,149.02,0.0493967]
[1740796756847,0.04947181,149.04,149.03,5.37]
[1740796758544,0.04947181,149.04,149.02,5.4196967]
[1740796758747,0.04947181,149.04,149.02,0.0493967]
[1740796760044,5.41927181,149.04,149.02,0.0493967]
[1740796760246,0.04947181,149.04,149.02,0.0493967]
[1740796760546,5.41937181,149.04,149.02,0.0493967]
[1740796760849,0.04947181,149.04,149.02,0.0493967]
[1740796762053,0.04947181,149.04,149.03,5.37]
[1740796763853,214.9,149.07,149.05,5.3691]
[1740796764461,214.9,149.07,149.03,5.37]
[1740796764763,14.02,149.12,149.02,0.0493967]
[1740796764965,0.04276643,149.06,148.99,3.6377]
[1740796765260,0.04276643,149.06,149.0,5.3711]
[1740796765457,0.04276643,149.06,149.01,0.04816427]
[1740796765660,10.8531,149.06,149.01,0.04816427]
[1740796765861,0.04983891,149.05,149.01,0.04816427]
[1740796767062,5.3703,149.03,149.01,0.04816427]
[1740796767363,214.80983891,149.05,148.95,14.02]
[1740796767558,5.3704,149.02,148.91,14.02]
[1740796767865,14.02,149.02,148.91,14.02]
[1740796768160,19.3904,149.02,148.91,14.02]
[1740796768561,0.04457618,148.98,148.95,0.04691688]
[1740796769058,0.04457618,148.98,148.96,5.3723]
[1740796769260,0.04457618,148.98,148.95,0.04691688]
[1740796769565,0.04457618,148.98,148.97,5.3722]
[1740796773079,7.618e-05,148.98,148.97,5.3722]
[1740796776664,7.618e-05,148.98,148.95,0.04691688]
[1740796776870,7.618e-05,148.98,148.96,5.3725]
[1740796777273,7.618e-05,148.98,148.95,0.04691688]
[1740796778274,7.618e-05,148.98,148.96,5.3723]
[1740796778475,7.618e-05,148.98,148.95,0.04691688]
[1740796779568,7.618e-05,148.98,148.95,5.41971688]
[1740796780173,7.618e-05,148.98,148.95,0.04691688]
[1740796780872,7.618e-05,148.98,148.96,5.3725]
[1740796781175,7.618e-05,148.98,148.95,0.04691688]
[1740796781369,7.618e-05,148.98,148.95,5.41951688]
[1740796782278,7.618e-05,148.98,148.95,0.04691688]
[1740796783076,7.618e-05,148.98,148.97,5.3722]
[1740796786985,7.618e-05,148.98,148.96,5.3723]
[1740796788588,7.618e-05,148.98,148.95,0.04691688]
[1740796788779,7.618e-05,148.98,148.95,5.41971688]
[1740796789083,7.618e-05,148.98,148.95,0.04691688]
[1740796789380,5.37187618,148.98,148.95,0.04691688]
[1740796789774,5.3723,148.97,148.95,0.04691688]
[1740796789974,7.618e-05,148.98,148.95,0.04691688]
[1740796790874,5.3724,148.97,148.95,0.04691688]
[1740796792979,5.37207618,148.98,148.95,0.04691688]
[1740796793583,5.37197618,148.98,148.95,0.04691688]
[1740796794081,5.3723,148.97,148.95,0.04691688]
[1740796794683,7.618e-05,148.98,148.95,5.41981688]
[1740796794884,7.618e-05,148.98,148.95,0.04691688]
[1740796795978,5.37207618,148.98,148.95,0.04691688]
[1740796796279,7.618e-05,148.98,148.95,0.04691688]
[1740796796473,5.3723,148.97,148.95,0.04691688]
[1740796796681,7.618e-05,148.98,148.95,0.04691688]
[1740796797183,5.37207618,148.98,148.95,0.04691688]
[1740796797386,7.618e-05,148.98,148.95,0.04691688]
[1740796797787,7.618e-05,148.98,148.95,5.41981688]
[1740796798186,7.618e-05,148.98,148.95,0.04691688]
[1740796798784,7.618e-05,148.98,148.95,5.41981688]
[1740796799189,7.618e-05,148.98,148.95,0.04691688]
[1740796799389,5.37217618,148.98,148.95,0.04691688]
[1740796800289,7.618e-05,148.98,148.95,5.41961688]
[1740796800791,5.37197618,148.98,148.95,0.04691688]
[1740796801484,7.618e-05,148.98,148.95,0.04691688]
[1740796801685,7.618e-05,148.98,148.95,5.41981688]
[1740796801888,7.618e-05,148.98,148.95,0.04691688]
[1740796802189,5.37217618,148.98,148.95,0.04691688]
[1740796802391,7.618e-05,148.98,148.95,0.04691688]
[1740796802988,5.3726,148.96,148.95,0.04691688]
[1740796803187,14.00007618,148.98,148.87,7.1853]
[1740796803383,5.3736,148.94,148.88,5.3751]
[1740796803581,6.9802,148.97,148.87,3.6396]
[1740796803883,5.3739,148.93,148.88,5.3754]
[1740796804084,6.9802,148.97,148.87,3.6396]
[1740796804292,0.04544658,148.92,148.89,0.04777925]
[1740796805086,5.41974658,148.92,148.89,0.04777925]
[1740796805285,0.04544658,148.92,148.89,0.04777925]
[1740796807088,0.04544658,148.92,148.89,5.42287925]
[1740796807289,0.04544658,148.92,148.89,0.04777925]
[1740796808987,5.41964658,148.92,148.89,0.04777925]
[1740796809689,5.3744,148.91,148.89,0.04777925]
[1740796811689,5.3747,148.9,148.89,0.04777925]
[1740796812688,0.04544658,148.92,148.8,206.0]
[1740796812893,3.7856,148.91,148.79,12.7926]
[1740796813095,3.5736,148.9,148.79,7.414]
[1740796813889,5.3769,148.84,148.83,0.0427628]
[1740796814097,228.9,148.85,148.76,42.3096261]
[1740796814296,232.6856,148.85,148.76,42.3096261]
[1740796814896,232.6856,148.85,148.76,36.9299261]
[1740796815395,0.04284193,148.82,148.79,0.04276682]
[1740796817502,0.04284193,148.82,148.8,5.3781]
[1740796818797,0.04284193,148.82,148.79,0.04276682]
[1740796821901,5.42054193,148.82,148.79,0.04276682]
[1740796822102,0.04284193,148.82,148.79,0.04276682]
[1740796822305,0.04284193,148.82,148.8,5.3782]
[1740796822601,0.04284193,148.82,148.79,0.04276682]
[1740796822902,0.04284193,148.82,148.81,5.378]
[1740796823297,214.9,148.85,148.79,0.04276682]
[1740796823498,24.8332,148.91,148.79,0.04276682]
[1740796823803,24.8332,148.91,148.75,206.0]
[1740796824705,0.04479697,148.84,148.82,0.04743117]
[1740796825015,24.8332,148.91,148.75,14.0]
[1740796825200,0.05154597,148.84,148.82,0.04287832]
[1740796825505,24.8332,148.91,148.75,14.0]
[1740796825701,5.42001788,148.84,148.82,0.04950464]
[1740796825906,5.3771,148.84,148.77,5.3793]
[1740796826100,5.42106518,148.84,148.82,0.04761638]
[1740796826301,0.04396518,148.84,148.75,14.0]
[1740796826502,14.0,148.86,148.82,0.04763551]
[1740796826702,0.04533742,148.81,148.75,14.0]
[1740796826904,14.0,148.86,148.75,14.0]
[1740796827099,19.3763,148.86,148.79,5.3785]
[1740796827303,0.04730348,148.82,148.79,5.3785]
[1740796827503,0.04730348,148.82,148.81,0.04713456]
[1740796828303,5.3752,148.89,148.81,0.04713456]
[1740796828606,7.1985,148.9,148.75,14.0]
[1740796828807,5.3755,148.88,148.82,5.3773]
[1740796829206,5.3755,148.88,148.75,14.0]
[1740796829406,5.3758,148.87,148.82,5.3774]
[1740796829602,0.04758479,148.83,148.82,5.3774]
[1740796829806,0.0516964,148.86,148.82,5.3774]
[1740796830011,0.0516964,148.86,148.81,0.0487209]
[1740796831216,5.3776,148.82,148.81,0.0487209]
[1740796832009,229.04,148.82,148.66,14.0]
[1740796832215,7.0448,148.81,148.71,5.3813]
[1740796833109,0.05057976,148.77,148.75,0.04841208]
[1740796836914,5.43007976,148.77,148.75,0.04841208]
[1740796837117,0.05057976,148.77,148.75,0.04841208]
[1740796837812,14.05057976,148.77,148.75,0.04841208]
[1740796838015,5.3798,148.76,148.75,0.04841208]
[1740796838515,5.3804,148.75,148.67,3.5289]
[1740796839608,0.04940548,148.72,148.7,0.04738262]
[1740796840917,0.04940548,148.72,148.7,5.42908262]
[1740796841518,0.04940548,148.72,148.71,5.3816]
[1740796841720,0.04940548,148.72,148.7,0.04738262]
[1740796842315,0.04940548,148.72,148.7,5.42908262]
[1740796842521,0.04940548,148.72,148.7,0.04738262]
[1740796842719,0.04940548,148.72,148.71,5.3816]
[1740796844517,0.04940548,148.72,148.7,0.04738262]
[1740796846016,229.20940548,148.72,148.59,10.9377]
[1740796846217,229.16,148.72,148.59,10.9377]
[1740796846417,7.2896,148.71,148.59,10.9377]
[1740796847122,0.04315919,148.66,148.64,0.05156044]
[1740796847319,5.3831,148.67,148.64,0.05156044]
[1740796847511,0.04965413,148.66,148.64,0.05156044]
[1740796847715,7.2896,148.71,148.64,0.05156044]
[1740796847918,0.04477837,148.66,148.64,0.05156044]
[1740796848119,5.3837,148.66,148.64,0.05156044]
[1740796848318,5.42810283,148.66,148.64,0.05156044]
[1740796849525,5.3838,148.65,148.64,0.05156044]
[1740796849724,0.04440283,148.66,148.58,9.23248152]
[1740796849920,3.627,148.65,148.54,3.8008]
[1740796850115,3.627,148.65,148.5,27.69744458]
[1740796850116,5.3852,148.62,148.5,27.69744458]
[1740796850317,257.0093,148.61,148.5,10.51284458]
[1740796850517,1.34589502,148.6,148.5,10.51284458]
[1740796851018,0.04288248,148.56,148.5,10.51284458]
[1740796851322,0.04288248,148.56,148.51,3.4548]
[1740796852626,1.34589502,148.6,148.52,14.0]
[1740796852923,1.34589502,148.6,148.52,19.43686025]
[1740796853122,215.2,148.61,148.53,3.7888]
[1740796853819,0.04911415,148.58,148.56,0.04625439]
[1740796854221,5.43541415,148.58,148.56,0.04625439]
[1740796854423,0.04911415,148.58,148.56,0.04625439]
[1740796857123,5.43541415,148.58,148.56,0.04625439]
[1740796857326,0.04911415,148.58,148.56,0.04625439]
[1740796858329,5.3867,148.57,148.56,0.04625439]
[1740796860427,0.04911415,148.58,148.56,0.04625439]
[1740796860629,5.43541415,148.58,148.56,0.04625439]
[1740796860826,0.04911415,148.58,148.56,0.04625439]
[1740796861820,215.2,148.61,148.56,5.43325439]
[1740796862329,220.5855,148.61,148.56,0.04625439]
[1740796862533,215.2,148.61,148.56,0.04625439]
[1740796862831,5.3857,148.6,148.56,0.04625439]
[1740796863030,5.43615893,148.6,148.56,0.04625439]
[1740796863231,0.05045893,148.6,148.56,0.04625439]
[1740796863431,5.3863,148.58,148.56,0.04625439]
[1740796864227,5.3867,148.57,148.56,0.04625439]
[1740796866030,8.9404,148.58,148.56,0.04625439]
[1740796866426,3.554,148.58,148.56,0.04625439]
[1740796867431,5.3867,148.57,148.56,0.04625439]
[1740796867927,0.05045893,148.6,148.56,0.04625439]
[1740796868132,0.05045893,148.6,148.56,5.43295439]
[1740796868326,0.05045893,148.6,148.56,0.04625439]
[1740796868526,0.05045893,148.6,148.58,5.3863]
[1740796869430,0.05045893,148.6,148.57,12.9183]
[1740796869827,0.05045893,148.6,148.57,7.5317]
[1740796870126,0.05045893,148.6,148.59,5.3859]
[1740796870324,215.2,148.61,148.57,11.0765]
[1740796870529,215.42,148.69,148.61,5.385]
[1740796870731,215.42,148.69,148.57,11.0765]
[1740796871139,220.8023,148.69,148.63,5.3841]
[1740796871433,0.04434132,148.64,148.62,0.04533502]
[1740796871630,215.42,148.69,148.62,0.04533502]
[1740796872032,0.04787577,148.67,148.62,0.04533502]
[1740796873029,5.3844,148.64,148.62,0.04533502]
[1740796873326,14.0,148.65,148.62,0.04533502]
[1740796874331,14.0,148.65,148.5,14.0]
[1740796874531,3.4495,148.64,148.49,14.0]